lending/lending_fUSD_20240610
["ID","MTS","AMOUNT","RATE_DAILY","PERIOD"]
[328921691,1717993835908,-25811.63479319,0.00027737,2]
[328921692,1717993835920,-11653.26466375,0.00027737,2]
[328921693,1717993835998,-4144.26708576,0.00027737,2]
[328921694,1717993836015,-3826.41226186,0.00027737,2]
[328921695,1717993836026,-4010.82121495,0.00027737,2]
[328921696,1717993836037,-779.28,0.00027737,2]
[328921697,1717993836054,-404.4999995,0.00027737,2]
[328921698,1717993836066,-44882.28588791,0.00027737,2]
[328921699,1717993836077,-611.8,0.00027737,2]
[328921728,1717993843823,-155.323,0.00021861,2]
[328921729,1717993843834,-2405.0,0.00021861,2]
[328921730,1717993843844,-808.0,0.00021861,2]
[328921731,1717993843854,-481.54,0.00026998,2]
[328921732,1717993843864,-194.73,0.00027727,10]
[328921733,1717993843874,-298086.25534064,0.00027737,2]
[328921734,1717993843899,-1105.67472714,0.00027737,2]
[328921739,1717993844168,-490.31169627,0.00027737,2]
[328921740,1717993844652,-478.9789901,0.00027736,2]
[328921742,1717993844663,-2438.87056989,0.00027737,2]
[328921781,1717994090126,-490.31169627,0.00014,2]
[328921782,1717994115241,-583000.0,0.00014,2]
[328921783,1717994115753,-583000.0,0.00014,2]
[328921784,1717994218370,-537.8115283,0.00013435,2]
[328921785,1717994218394,-155.0,0.00013436,2]
[328921786,1717994218419,-824.91329536,0.00013438,2]
[328921787,1717994218444,-7543.72254498,0.00013438,2]
[328921788,1717994218468,-625.29760276,0.00013439,2]
[328921789,1717994218495,-752.05039497,0.000139,2]
[328921790,1717994218522,-18341.07606333,0.000139,2]
[328921791,1717994218548,-323.38940883,0.000139,2]
[328921792,1717994218572,-187.13970511,0.000139,2]
[328921793,1717994218602,-1408795.77850901,0.00014,2]
[328921794,1717994218626,-1207.64797745,0.00014,2]
[328921795,1717994218650,-179.41569686,0.00014,2]
[328921796,1717994218675,-362.85834995,0.00014,2]
[328921797,1717994218699,-20268.82653709,0.00014,2]
[328921798,1717994218722,-299.71922881,0.00014,2]
[328921799,1717994218748,-547903.74825756,0.00014,2]
[328921800,1717994218773,-233.82973077,0.00014,2]
[328921801,1717994218796,-155.56010455,0.00014,2]
[328921802,1717994218821,-289.91140799,0.00014,2]
[328921803,1717994234456,61264.13096997,0.00014,2]
[328921804,1717994235522,255.72575956,0.00014,2]
[328921805,1717994287630,20271.54851503,0.00014,2]
[328921806,1717994288238,4760.11205541,0.00014,2]
[328921807,1717994288300,155.0,0.00014,2]
[328921808,1717994289970,511.00429262,0.00013664,2]
[328921809,1717994290384,171.19406786,5e-05,2]
[328921810,1717994290417,161.38848941,0.00014,2]
[328921811,1717994290713,947.931432,0.00014,2]
[328921812,1717994291125,19779.47425751,0.00014,2]
[328921813,1717994291631,752.69639666,0.000139,2]
[328921814,1717994292453,547903.74825756,0.00014,2]
[328921815,1717994292863,347.82893612,0.00014,2]
[328921816,1717994293063,180.69395492,0.00014,2]
[328921817,1717994293098,24663.38911052,0.00014,2]
[328921818,1717994295169,362.98346764,0.00014,2]
[328921819,1717994295352,299.75188144,0.00014,2]
[328921820,1717994295749,2553.55168877,0.000105,2]
[328921821,1717994296702,155.78269558,0.00014,2]
[328921822,1717994297329,155.5106218,0.00014,2]
[328921823,1717994297525,289.91140799,0.00014,2]
[328921824,1717994298001,551.33947708,0.00014,2]
[328921825,1717994298528,206.03170677,0.00013999,2]
[328921826,1717994304309,155.0,0.00014,2]
[328921827,1717994304348,814.49210641,0.00013817,2]
[328921828,1717994305628,20271.54851503,0.00014,2]
[328921829,1717994307044,19779.47425751,0.00014,2]
[328921830,1717994308682,947.931432,0.00014,2]
[328921831,1717994308815,347.82893612,0.00014,2]
[328921832,1717994308904,362.42818017,0.00014,2]
[328921833,1717994309076,22675.68538098,0.00014,2]
[328921834,1717994309637,409.14289488,0.000139,2]
[328921835,1717994309686,2553.55168877,0.000105,2]
[328921836,1717994310239,4760.11205541,0.00014,2]
[328921837,1717994310991,180.69395492,0.00014,2]
[328921838,1717994314449,231053.6848119,0.00014,2]
[328921839,1717994322271,814.49210641,0.00012599,2]
[328921840,1717994333691,2553.55168877,0.000105,2]
[328921841,1717994342444,424.35038744,0.00012599,2]
[328921842,1717994351698,1207.60581738,0.000105,2]
[328921843,1717994351722,389.97009538,0.000105,2]
[328921844,1717994362367,424.35038744,0.00012598,2]
[328921845,1717994378366,424.35038744,0.00012598,2]
[328921846,1717994386035,289.91140799,0.00012598,2]
[328921847,1717994388777,155.0,0.00012598,2]
[328921848,1717994389561,3316.41772175,0.00012598,2]
[328921849,1717994389588,5000.0,0.00012598,2]
[328921850,1717994389615,5000.0,0.00012598,2]
[328921851,1717994389641,5000.0,0.00012598,2]
[328921852,1717994389666,1463.05653576,0.00012598,2]
[328921853,1717994392747,3536.94346424,0.00012598,2]
[328921854,1717994392775,1223.16859117,0.00012598,2]
[328921855,1717994395459,347.82893612,0.00012598,2]
[328921856,1717994395501,180.69395492,0.00012598,2]
[328921857,1717994396375,424.35038744,0.00012598,2]
[328921858,1717994397153,947.931432,0.00012598,2]
[328921859,1717994398416,551.33947708,0.00012598,2]
[328921860,1717994403045,150.0,0.00012598,2]
[328921861,1717994403333,150.0,0.00012598,2]
[328921862,1717994403525,150.0,0.00012598,2]
[328921863,1717994403776,150.0,0.00012598,2]
[328921864,1717994403970,150.0,0.00012598,2]
[328921865,1717994404043,289.91140799,0.00012598,2]
[328921866,1717994404186,150.0,0.00012598,2]
[328921867,1717994404361,134.77581328,0.00012598,2]
[328921868,1717994404387,15.22418672,0.00012598,2]
[328921869,1717994404556,150.0,0.00012598,2]
[328921870,1717994404943,150.0,0.00012598,2]
[328921871,1717994404976,155.0,0.00012598,2]
[328921872,1717994405014,150.0,0.00012598,2]
[328921873,1717994405525,150.0,0.00012598,2]
[328921874,1717994405559,4229.77581328,0.00012598,2]
[328921875,1717994405583,5000.0,0.00012598,2]
[328921876,1717994405607,5000.0,0.00012598,2]
[328921877,1717994405631,5000.0,0.00012598,2]
[328921878,1717994405656,549.69844423,0.00012598,2]
[328921879,1717994405770,150.0,0.00012598,2]
[328921880,1717994406227,150.0,0.00012598,2]
[328921881,1717994406411,150.0,0.00012598,2]
[328921882,1717994406618,218.07083134,0.00012598,2]
[328921883,1717994406959,3782.23072443,0.00012598,2]
[328921884,1717994406986,5000.0,0.00012598,2]
[328921885,1717994407014,5000.0,0.00012598,2]
[328921886,1717994407041,5000.0,0.00012598,2]
[328921887,1717994446865,-176.42610603,0.00012597,2]
[328921888,1717994446898,-399823.57389397,0.00012598,2]
[328921889,1717994447706,-3000.0145,0.00012598,2]
[328921890,1717994533231,14347.45694643,0.00012494,2]
[328921891,1717994548091,180.69395492,0.00012494,2]
[328921893,1717994550551,289.91140799,0.00012494,2]
[328921894,1717994551277,718.86146872,0.00012494,2]
[328921895,1717994551310,4041.25058669,0.00012494,2]
[328921896,1717994552910,551.33947708,0.00012494,2]
[328921897,1717994553676,947.931432,0.00012494,2]
[328921898,1717994556091,19779.47425751,0.00012494,2]
[328921899,1717994562140,180.70904777,0.00012494,2]
[328921900,1717994567721,435.51261486,0.00012494,2]
[328921901,1717994569279,4760.11205541,0.00012494,2]
[328921902,1717994570558,267.46686255,0.00012494,2]
[328921903,1717994570920,551.33947708,0.00012494,2]
[328921904,1717994571481,96272.48652526,0.00012494,2]
[328921905,1717994571510,160.48776224,0.00012494,2]
[328921906,1717994577940,-150.0,0.00012494,2]
[328921907,1717994578550,-150.0,0.00012494,2]
[328921908,1717994588238,165.8533582,0.00010959,2]
[328921909,1717994588261,126.8166418,0.00010959,2]
[328921910,1717994614588,159.26813598,0.00010959,2]
[328921911,1717994614614,159.26813598,0.00010959,2]
[328921912,1717994614638,159.26813598,0.00010959,2]
[328921913,1717994614663,159.26813598,0.00010959,2]
[328921914,1717994614687,159.26813598,0.00010959,2]
[328921915,1717994614715,159.26813598,0.00010959,2]
[328921916,1717994614739,159.26813598,0.00010959,2]
[328921917,1717994614762,159.26813598,0.00010959,2]
[328921918,1717994614787,159.26813598,0.00010959,2]
[328921919,1717994614811,159.26813598,0.00010959,2]
[328921920,1717994614834,159.26813598,0.00010959,2]
[328921921,1717994614858,159.26813598,0.00010959,2]
[328921922,1717994614883,159.26813598,0.00010959,2]
[328921923,1717994614906,159.26813598,0.00010959,2]
[328921924,1717994614931,159.26813598,0.00010959,2]
[328921925,1717994614956,159.26813598,0.00010959,2]
[328921926,1717994614981,159.26813598,0.00010959,2]
[328921927,1717994615004,159.26813598,0.00010959,2]
[328921928,1717994615029,159.26813598,0.00010959,2]
[328921929,1717994615053,159.26813598,0.00010959,2]
[328921930,1717994615077,159.26813598,0.00010959,2]
[328921931,1717994615103,159.26813598,0.00010959,2]
[328921932,1717994615126,159.26813598,0.00010959,2]
[328921933,1717994615149,159.26813598,0.00010959,2]
[328921934,1717994615173,159.26813598,0.00010959,2]
[328921935,1717994615197,159.26813598,0.00010959,2]
[328921936,1717994615222,159.26813598,0.00010959,2]
[328921937,1717994615246,159.26813598,0.00010959,2]
[328921938,1717994615270,159.26813598,0.00010959,2]
[328921939,1717994615293,159.26813598,0.00010959,2]
[328921940,1717994615319,4000.0,0.00010959,2]
[328921941,1717994615348,4000.0,0.00010959,2]
[328921942,1717994615374,4000.0,0.00010959,2]
[328921943,1717994615608,3001.43017811,0.00010959,2]
[328921944,1717994615819,159.26813598,0.00010959,2]
[328921945,1717994615843,159.26813598,0.00010959,2]
[328921946,1717994615866,159.26813598,0.00010959,2]
[328921947,1717994615889,73.53506914,0.00010959,2]
[328921948,1717994631932,150.0,0.00010411,2]
[328921949,1717994631955,150.0,0.00010411,2]
[328921950,1717994631978,150.0,0.00010411,2]
[328921951,1717994632002,150.0,0.00010411,2]
[328921952,1717994632026,150.0,0.00010411,2]
[328921953,1717994632049,150.0,0.00010411,2]
[328921954,1717994632073,57.98460544,0.00010411,2]
[328921955,1717994632589,92.01539456,0.00010959,2]
[328921956,1717994632827,150.0,0.00010959,2]
[328921957,1717994632853,150.0,0.00010959,2]
[328921958,1717994632878,150.0,0.00010959,2]
[328921959,1717994632902,150.0,0.00010959,2]
[328921960,1717994632927,150.0,0.00010959,2]
[328921961,1717994632951,150.0,0.00010959,2]
[328921962,1717994632974,46.24390857,0.00010959,2]
[328921963,1717994633435,103.75609143,0.00010959,2]
[328921964,1717994633460,150.0,0.00010959,2]
[328921965,1717994633484,150.0,0.00010959,2]
[328921966,1717994633510,147.58338565,0.00010959,2]
[328921967,1717994633753,2.41661435,8.219e-05,2]
[328921968,1717994633779,150.0,8.219e-05,2]
[328921969,1717994633805,150.0,8.219e-05,2]
[328921970,1717994633829,147.58338565,8.219e-05,2]
[328921971,1717994635211,2.41661435,0.0001041,2]
[328921972,1717994635233,150.0,0.0001041,2]
[328921973,1717994635256,150.0,0.0001041,2]
[328921974,1717994635280,150.0,0.0001041,2]
[328921975,1717994635301,150.0,0.0001041,2]
[328921976,1717994635324,150.0,0.0001041,2]
[328921977,1717994635348,154.74868128,0.0001041,2]
[328921978,1717994635372,150.0,0.0001041,2]
[328921979,1717994635396,150.0,0.0001041,2]
[328921980,1717994635418,130.59733829,0.0001041,2]
[328921981,1717994637112,19.40266171,0.00010959,2]
[328921982,1717994637135,150.0,0.00010959,2]
[328921983,1717994637166,880.59733829,0.00010959,2]
[328921984,1717994638408,155.0,0.0001041,2]
[328921985,1717994640381,150.0,0.00010959,2]
[328921986,1717994640409,150.0,0.00010959,2]
[328921987,1717994640438,150.0,0.00010959,2]
[328921988,1717994640467,150.0,0.00010959,2]
[328921989,1717994640498,150.0,0.00010959,2]
[328921990,1717994640527,150.0,0.00010959,2]
[328921991,1717994640551,150.0,0.00010959,2]
[328921992,1717994640578,150.0,0.00010959,2]
[328921993,1717994640606,150.0,0.00010959,2]
[328921994,1717994647857,150.0,0.00010411,2]
[328921995,1717994647896,7.77037675,0.00010411,2]
[328921996,1717994649434,551.33947708,0.00010959,2]
[328921997,1717994650421,150.0,0.00010959,2]
[328921998,1717994650451,150.0,0.00010959,2]
[328921999,1717994650480,150.0,0.00010959,2]
[328922000,1717994650516,80350.05891042,0.00010959,2]
[328922001,1717994667422,150.0,0.00010959,2]
[328922002,1717994667450,150.0,0.00010959,2]
[328922003,1717994667476,150.0,0.00010959,2]
[328922004,1717994667501,1.65752635,0.00010959,2]
[328922005,1717994680000,600.0,0.00010411,2]
[328922006,1717994690188,10584.5653049,0.00010411,2]
[328922007,1717994826887,-1123.63533016,0.00011098,2]
[328922008,1717994827170,-501.66920089,0.00011098,2]
[328922009,1717994827192,-424.35038744,0.00011099,2]
[328922010,1717994827214,-337.94726431,0.000111,2]
[328922011,1717994827236,-504.0,0.000112,2]
[328922012,1717994827260,-490.61954782,0.000112,2]
[328922013,1717994827284,-8421.50868744,0.000112,2]
[328922014,1717994827308,-300.0,0.00011205,2]
[328922015,1717994827331,-150.0,0.00012466,2]
[328922016,1717994827354,-482.00237009,0.00012487,2]
[328922017,1717994827376,-448.90813341,0.00012487,2]
[328922018,1717994827400,-942.09246201,0.00012488,2]
[328922019,1717994827426,-296.81340302,0.00012488,2]
[328922020,1717994827450,-150.0,0.00012489,2]
[328922021,1717994827471,-1336.68556782,0.0001249,2]
[328922022,1717994827497,-2456.25370478,0.0001249,2]
[328922023,1717994834033,150.0,0.00010411,2]
[328922024,1717994834067,150.0,0.00010411,2]
[328922025,1717994834095,150.0,0.00010411,2]
[328922026,1717994834353,150.0,0.00010411,2]
[328922027,1717994834380,150.0,0.00010411,2]
[328922028,1717994834407,150.0,0.00010411,2]
[328922029,1717994834441,25482.04624853,0.00010411,2]
[328922030,1717994847235,-977.947979,0.00011043,2]
[328922031,1717994847260,-1261.28822006,0.00011198,2]
[328922032,1717994847285,-490.42437112,0.00011198,2]
[328922033,1717994847310,-1270.33942982,0.00011198,2]
[328922034,1717994848703,-354.14850231,0.00011198,2]
[328922035,1717994848728,-719.21457341,0.00011199,2]
[328922036,1717994848751,-424.35038744,0.00012488,2]
[328922037,1717994848779,-2502.28653684,0.00012488,2]
[328922038,1717994850124,-1410.38641634,0.00012488,2]
[328922039,1717994850151,-2589.61358366,0.00012489,2]
[328922040,1717994851251,-4000.0,0.00012489,2]
[328922041,1717994852010,1202.97664685,0.00010411,2]
[328922042,1717994852657,-2631.48153004,0.00012489,2]
[328922043,1717994853092,-5296.11449973,0.0001249,2]
[328922044,1717994859936,424.35038744,0.00011332,2]
[328922045,1717994861699,778.83034579,0.00012,2]
[328922046,1717994864273,-150.0,0.0001249,2]
[328922047,1717994864440,-150.0,0.0001249,2]
[328922048,1717994864487,-150.0,0.0001249,2]
[328922049,1717994864612,-150.0,0.0001249,2]
[328922050,1717994864651,-150.0,0.0001249,2]
[328922051,1717994864728,-150.0,0.0001249,2]
[328922052,1717994864794,-298.34247365,0.0001249,2]
[328922053,1717994865418,165.33773673,0.00012489,2]
[328922054,1717994865444,264.44932762,0.00012489,2]
[328922055,1717994866998,2368.99633201,0.00012489,2]
[328922056,1717994879064,196.09020572,0.00012393,2]
[328922057,1717994882018,271.16965421,0.00012489,2]
[328922058,1717994883932,299.75188144,0.00012489,2]
[328922059,1717994883973,424.35038744,0.00011242,2]
[328922060,1717994885714,175.19221156,0.00012239,2]
[328922061,1717994885743,424.80778844,0.00012239,2]
[328922062,1717994886975,157.16271108,0.00012393,2]
[328922063,1717994897984,229.16882945,0.00012489,2]
[328922064,1717994901945,424.35038744,0.00011242,2]
[328922065,1717994923469,-1049.27932184,0.0001249,2]
[328922066,1717994923495,-196.09020571,0.00012491,2]
[328922067,1717994923523,-2374.99098069,0.00012491,2]
[328922068,1717994923552,-379.63949176,0.00012492,2]
[328922069,1717994923947,302.75385405,0.00011242,2]
[328922070,1717994924273,-49.91374219,0.00012492,2]
[328922071,1717994924300,-150.0,0.00012492,2]
[328922072,1717994924328,-150.0,0.00012492,2]
[328922073,1717994924353,-3650.08625781,0.00012493,2]
[328922074,1717994924888,-4000.0,0.00012493,2]
[328922075,1717994926798,-2888.88713387,0.00012493,2]
[328922076,1717994934927,-1000.0,0.00012494,2]
[328922077,1717994947141,-468.37136301,0.00012494,2]
[328922078,1717994947166,-3116.48996701,0.0001259,2]
[328922079,1717994947188,-191.35915009,0.00012591,2]
[328922080,1717994947209,-9215.58666062,0.00012591,2]
[328922081,1717994947231,-3711.6448469,0.00012592,2]
[328922082,1717994947253,-33151.24201992,0.00012593,2]
[328922083,1717994947276,-3685.9351781,0.00012594,2]
[328922084,1717994947297,-499.99,0.00012594,2]
[328922085,1717994947318,-1580.35308737,0.00012596,2]
[328922086,1717994947338,-525.24750184,0.00012596,2]
[328922087,1717994947360,-2193.94401019,0.00012596,2]
[328922088,1717994947382,-155.0,0.00012596,2]
[328922089,1717994947405,-525.22812032,0.00012596,2]
[328922090,1717994947426,-176.51048241,0.00012597,2]
[328922091,1717994947449,-155.49588908,0.00012598,2]
[328922092,1717994947473,-204.75386283,0.00012598,2]
[328922093,1717994947496,-2000.0,0.00012598,2]
[328922094,1717994947522,-96.35120635,0.00012598,2]
[328922095,1717994961717,1111.11286613,0.00012,2]
[328922096,1717994961740,330.63328598,0.00012,2]
[328922097,1717994962605,290.44936751,0.00011242,2]
[328922098,1717994966118,-267.31376338,0.00012597,2]
[328922099,1717994966142,-78.25832776,0.00012598,2]
[328922115,1717995033054,-25.39046589,0.00012598,2]
[328922116,1717995033065,-492.33801851,0.00012624,2]
[328922117,1717995033074,-2000.0,0.00012724,2]
[328922118,1717995033084,-200.0,0.00012724,2]
[328922119,1717995033093,-169.7,0.00012751,2]
[328922120,1717995033102,-1275.26,0.0001308,2]
[328922121,1717995033112,-210.0,0.00013741,2]
[328922122,1717995033122,-210.0,0.00013741,2]
[328922123,1717995033131,-2850.9213,0.000139,2]
[328922124,1717995033141,-163.4,0.00013954,2]
[328922125,1717995033151,-267.2374489,0.00013999,2]
[328922126,1717995033161,-500.0,0.00014,2]
[328922127,1717995033170,-500.0,0.00014,2]
[328922128,1717995033180,-500.0,0.00014,2]
[328922129,1717995033190,-798.0,0.00014,2]
[328922130,1717995033200,-500.0,0.00014,2]
[328922131,1717995033210,-500.0,0.00014,2]
[328922132,1717995033220,-500.0,0.00014,2]
[328922133,1717995033230,-500.0,0.00014,2]
[328922134,1717995033240,-500.0,0.00014,2]
[328922135,1717995033249,-500.0,0.00014,2]
[328922136,1717995033260,-500.0,0.00014,2]
[328922137,1717995033269,-500.0,0.00014,2]
[328922138,1717995033279,-500.0,0.00014,2]
[328922139,1717995033289,-500.0,0.00014,2]
[328922140,1717995033298,-841.0,0.00014,2]
[328922141,1717995033308,-1606.44,0.00014,2]
[328922142,1717995033318,-150.99,0.00014,2]
[328922143,1717995033329,-152.52,0.00014275,2]
[328922144,1717995033338,-152.52,0.00014279,2]
[328922145,1717995033348,-152.52,0.00014283,2]
[328922146,1717995033358,-152.52,0.00014287,2]
[328922147,1717995033367,-152.52,0.00014291,2]
[328922148,1717995033377,-152.52,0.00014296,2]
[328922149,1717995033386,-152.52,0.000143,2]
[328922150,1717995033396,-152.52,0.00014304,2]
[328922151,1717995033406,-152.52,0.00014308,2]
[328922152,1717995033416,-152.52,0.00014312,2]
[328922153,1717995033426,-152.52,0.00014316,2]
[328922154,1717995033436,-152.52,0.00014321,2]
[328922155,1717995033445,-152.52,0.00014325,2]
[328922156,1717995033455,-152.52,0.00014329,2]
[328922157,1717995033465,-152.52,0.00014333,2]
[328922158,1717995033475,-152.52,0.00014337,2]
[328922159,1717995033486,-152.52,0.00014342,2]
[328922160,1717995033496,-152.52,0.00014346,2]
[328922161,1717995033505,-200.0,0.00014352,2]
[328922162,1717995033515,-200.0,0.00014437,2]
[328922163,1717995033526,-250.0,0.00014522,2]
[328922164,1717995033540,-3287.68,0.00014563,2]
[328922166,1717995033550,-500.0,0.00014875,2]
[328922168,1717995033559,-169.7,0.00014876,2]
[328922170,1717995033569,-6275.23,0.00015014,2]
[328922193,1717995033787,-150.0,0.00015053,2]
[328922194,1717995033797,-1993.8892,0.00015153,2]
[328922195,1717995033807,-16150.2159,0.00015253,2]
[328922196,1717995033817,-158.38,0.0001534,2]
[328922197,1717995033827,-1275.26,0.00015344,2]
[328922198,1717995033838,-155.34937829,0.00015353,2]
[328922199,1717995033848,-208.76304207,0.00015353,2]
[328922200,1717995033858,-267.18811402,0.00015353,2]
[328922201,1717995033868,-306.33553311,0.00015354,2]
[328922202,1717995033877,-18341.07606332,0.00015355,2]
[328922203,1717995033887,-250.0,0.00015368,2]
[328922204,1717995033897,-23900.0,0.00015574,2]
[328922205,1717995033906,-1264.43,0.00015574,2]
[328922206,1717995033915,-1261.41,0.00015959,2]
[328922207,1717995033924,-1854.45,0.00016014,2]
[328922208,1717995033935,-208.81,0.00016197,2]
[328922209,1717995033944,-1852.42,0.00016493,2]
[328922210,1717995033954,-163.94,0.00016661,2]
[328922211,1717995033964,-443.67,0.00016663,2]
[328922212,1717995033973,-2549.80161279,0.00016808,2]
[328922213,1717995033984,-159.55026716,0.00016808,2]
[328922214,1717995033994,-18341.07606332,0.00016809,2]
[328922215,1717995034003,-7109.42,0.00016883,2]
[328922216,1717995034013,-169.7,0.00017002,2]
[328922217,1717995034023,-1275.26,0.00017608,2]
[328922218,1717995034032,-158.2,0.0001763,2]
[328922219,1717995034042,-4621.24,0.00017678,2]
[328922220,1717995034051,-1965.62,0.00017733,2]
[328922221,1717995034061,-735.83,0.00017889,2]
[328922222,1717995034071,-767.16253188,0.00018,2]
[328922223,1717995034080,-18341.07606332,0.00018264,2]
[328922224,1717995034090,-157.16271108,0.00018412,2]
[328922225,1717995034099,-158.2,0.00018512,2]
[328922226,1717995034109,-182.94489597,0.000187,2]
[328922227,1717995034118,-163.94,0.00018744,2]
[328922228,1717995034129,-2751.0,0.00018986,2]
[328922229,1717995034139,-478.9789901,0.00019,2]
[328922230,1717995034148,-169.7,0.00019127,2]
[328922231,1717995034158,-158.2,0.00019393,2]
[328922232,1717995034167,-7109.42,0.00019622,2]
[328922233,1717995034178,-18341.07606332,0.00019718,2]
[328922234,1717995034188,-1275.26,0.00019872,2]
[328922235,1717995034198,-864.99778559,0.0002,2]
[328922236,1717995034209,-204.63111674,0.0002,2]
[328922237,1717995034219,-226.69645122,0.000201,2]
[328922238,1717995034229,-158.2,0.00020275,2]
[328922239,1717995034240,-163.94,0.00020826,2]
[328922240,1717995034249,-163.4,0.00020931,2]
[328922241,1717995034258,-158.2,0.00021156,2]
[328922242,1717995034268,-18341.07606332,0.00021173,2]
[328922243,1717995034277,-156.497,0.00021634,2]
[328922244,1717995034287,-445.773,0.00021634,2]
[328922245,1717995034297,-1657.216,0.00021634,2]
[328922246,1717995034307,-281.0,0.00021634,2]
[328922247,1717995034317,-2406.0,0.00021634,2]
[328922248,1717995034327,-809.0,0.00021634,2]
[328922249,1717995034337,-165.0,0.00021634,2]
[328922250,1717995034348,-447.0,0.00021634,2]
[328922251,1717995034359,-3172.0,0.00021634,2]
[328922252,1717995034369,-1304.0,0.00021634,2]
[328922253,1717995034379,-546.0,0.00021634,2]
[328922254,1717995034390,-5783.0,0.00021634,2]
[328922255,1717995034400,-1567.869,0.00021634,2]
[328922256,1717995034410,-1197.149,0.00021634,2]
[328922257,1717995034421,-5154.0,0.00021634,2]
[328922258,1717995034431,-12667.701,0.00021634,2]
[328922259,1717995034441,-290.0,0.00021634,2]
[328922260,1717995034451,-1264.43,0.00021803,2]
[328922261,1717995034461,-238.8,0.00021918,2]
[328922262,1717995034472,-250.0,0.00021918,2]
[328922263,1717995034482,-2266.0,0.00022,3]
[328922264,1717995034492,-839.33050924,0.00022136,2]
[328922265,1717995034512,-435.92949076,0.00022136,2]
[328922266,1717995034522,-865.76087885,0.00022262,2]
[328922267,1717995034535,-857.78005677,0.00022362,2]
[328922268,1717995034546,-714.73886099,0.00022362,2]
[328922274,1717995044001,-2481.19089407,0.00018164,2]
[328922297,1717995047283,-18.80910593,0.00018164,2]
[328922298,1717995047294,-446.827131,0.0002225,2]
[328922299,1717995047304,-199.9,0.00022357,2]
[328922300,1717995047315,-5536.90108224,0.00022362,2]
[328922301,1717995047324,-182.94489595,0.00022432,2]
[328922302,1717995047333,-11739.0,0.000226,5]
[328922303,1717995047343,-500.0,0.00022602,2]
[328922304,1717995047352,-18341.07606332,0.00022627,2]
[328922305,1717995047362,-183.9091188,0.00022809,2]
[328922306,1717995047372,-3754.1122,0.000229,2]
[328922307,1717995047381,-49777.72228338,0.000229,2]
[328922315,1717995897209,-345.72385954,0.00015289,2]
[328922316,1717995897233,-2336.78675648,0.00015289,2]
[328922317,1717995897256,-316.43361078,0.0001529,2]
[328922318,1717995897280,-150.0,0.00016096,2]
[328922319,1717995897302,-16150.2159,0.00016097,2]
[328922320,1717995897325,-162.25,0.00017648,2]
[328922321,1717995897348,-478.9789901,0.00019,2]
[328922322,1717995897372,-59.6108831,0.0001945,2]
[328922323,1717996033909,1000.0,0.0003,120]
[328922324,1717996036172,-536.19769862,0.00015187,2]
[328922325,1717996036195,-300.0,0.00015188,2]
[328922326,1717996036219,-9885.19076348,0.00015189,2]
[328922327,1717996046018,1000.0,0.0003,120]
[328922328,1717996052897,1134.728419,0.0003,120]
[328922339,1717996232595,-3842.55938278,0.00015189,2]
[328922340,1717996232608,-2422.46575374,0.00015189,2]
[328922341,1717996232617,-407.62260723,0.00017259,2]
[328922342,1717996232627,-338.68648196,0.00017259,2]
[328922343,1717996232637,-1474.68141437,0.00017259,2]
[328922344,1717996232647,-478.9789901,0.00019449,2]
[328922345,1717996232657,-96.2898666,0.0001945,2]
[328922346,1717996232667,-499.99,0.0001945,2]